fUSD/lending_fUSD_20240518
["ID","MTS","AMOUNT","RATE_DAILY","PERIOD"]
[327371008,1716027038583,-500.0,0.00035616,9]
[327371010,1716027038592,-500.0,0.00035616,9]
[327371012,1716027038602,-546.09,0.00035616,9]
[327371014,1716027038611,-500.0,0.00035616,9]
[327371016,1716027038621,-500.0,0.00035616,9]
[327371018,1716027038630,-3803.72,0.00035616,9]
[327371020,1716027038639,-333.94525052,0.00035616,9]
[327371022,1716027038649,-500.0,0.00035616,9]
[327371024,1716027038658,-593.45,0.00035616,9]
[327371026,1716027038667,-797.77,0.00035616,9]
[327371028,1716027038678,-500.0,0.00035616,9]
[327371030,1716027038687,-505.25226668,0.00035616,9]
[327371032,1716027038696,-500.0,0.00035616,9]
[327371034,1716027038704,-500.0,0.00035616,9]
[327371036,1716027038714,-2284.56,0.00035616,9]
[327371038,1716027038723,-500.0,0.00035616,9]
[327371040,1716027038733,-500.0,0.00035616,9]
[327371042,1716027038742,-510.33080448,0.00035616,9]
[327371044,1716027038752,-500.0,0.00035616,9]
[327371046,1716027038761,-538.34,0.00035616,9]
[327371048,1716027038770,-500.0,0.00035616,9]
[327371050,1716027038779,-827.64,0.00035616,9]
[327371052,1716027038788,-500.0,0.00035616,9]
[327371054,1716027038797,-832.88,0.00035616,9]
[327371056,1716027038806,-500.0,0.00035616,9]
[327371058,1716027038815,-2188.52,0.00035616,9]
[327371060,1716027038824,-500.0,0.00035616,9]
[327371062,1716027038833,-815.72,0.00035616,9]
[327371064,1716027038842,-796.82,0.00035616,9]
[327371066,1716027038851,-533.54639718,0.00035616,9]
[327371068,1716027038860,-500.0,0.00035616,9]
[327371070,1716027038871,-500.0,0.00035616,9]
[327371072,1716027038881,-500.0,0.00035616,9]
[327371074,1716027038890,-500.0,0.00035616,9]
[327371076,1716027038899,-1152.06,0.00035616,9]
[327371078,1716027038909,-1152.06,0.00035616,9]
[327371080,1716027038918,-500.0,0.00035616,9]
[327371082,1716027038929,-1152.06,0.00035616,9]
[327371084,1716027038938,-500.0,0.00035616,9]
[327371086,1716027038947,-500.0,0.00035616,9]
[327371088,1716027038957,-500.0,0.00035616,9]
[327371090,1716027038966,-752.83,0.00035616,9]
[327371092,1716027038975,-500.0,0.00035616,9]
[327371094,1716027038984,-864.81,0.00035616,9]
[327371096,1716027038993,-1041.01,0.00035616,9]
[327371098,1716027039003,-500.0,0.00035616,9]
[327371100,1716027039012,-500.0,0.00035616,9]
[327371102,1716027039022,-500.0,0.00035616,9]
[327371104,1716027039031,-506.4880878,0.00035616,9]
[327371106,1716027039040,-1424.33,0.00035616,9]
[327371108,1716027039050,-500.0,0.00035616,9]
[327371110,1716027039059,-500.0,0.00035616,9]
[327371112,1716027039069,-500.0,0.00035616,9]
[327371114,1716027039078,-500.0,0.00035616,9]
[327371116,1716027039091,-500.0,0.00035616,9]
[327371118,1716027039101,-1362.23,0.00035616,9]
[327371120,1716027039111,-500.0,0.00035616,9]
[327371122,1716027039122,-500.0,0.00035616,9]
[327371124,1716027039132,-500.0,0.00035616,9]
[327371131,1716027039194,-939.57,0.00035616,9]
[327371133,1716027039204,-1087.06,0.00035616,9]
[327371135,1716027039214,-500.0,0.00035616,9]
[327371137,1716027039224,-500.0,0.00035616,9]
[327371139,1716027039234,-196.98428214,0.00035616,9]
[327371142,1716027039245,-500.0,0.00035616,9]
[327371144,1716027039256,-500.0,0.00035616,9]
[327371146,1716027039266,-500.0,0.00035616,9]
[327371148,1716027039276,-696.54,0.00035616,9]
[327371150,1716027039285,-1289.9,0.00035616,9]
[327371152,1716027039295,-500.0,0.00035616,9]
[327371154,1716027039304,-3041.74,0.00035616,9]
[327371156,1716027039314,-825.26,0.00035616,9]
[327371158,1716027039323,-559.66,0.00035616,9]
[327371160,1716027039333,-500.0,0.00035616,9]
[327371161,1716027039343,-500.0,0.00035616,9]
[327371163,1716027039353,-500.0,0.00035616,9]
[327371166,1716027039363,-500.0,0.00035616,9]
[327371167,1716027039372,-500.0,0.00035616,9]
[327371170,1716027039382,-500.0,0.00035616,9]
[327371172,1716027039391,-195.13669836,0.00035616,9]
[327371174,1716027039401,-500.0,0.00035616,9]
[327371175,1716027039411,-759.62,0.00035616,9]
[327371178,1716027039420,-629.52,0.00035616,9]
[327371179,1716027039433,-534.49,0.00035616,9]
[327371182,1716027039443,-570.27,0.00035616,9]
[327371185,1716027039454,-500.0,0.00035616,9]
[327371188,1716027039464,-500.0,0.00035616,9]
[327371190,1716027039473,-500.0,0.00035616,9]
[327371191,1716027039482,-500.0,0.00035616,9]
[327371194,1716027039492,-500.0,0.00035616,9]
[327371196,1716027039502,-500.0,0.00035616,9]
[327371198,1716027039511,-500.0,0.00035616,9]
[327371199,1716027039521,-500.0,0.00035616,9]
[327371201,1716027039530,-697.12,0.00035616,9]
[327371204,1716027039540,-912.9,0.00035616,9]
[327371206,1716027039550,-549.38,0.00035616,9]
[327371208,1716027039559,-500.0,0.00035616,9]
[327371210,1716027039568,-500.0,0.00035616,9]
[327371212,1716027039577,-500.0,0.00035616,9]
[327371214,1716027039587,-500.0,0.00035616,9]
[327371216,1716027039596,-500.0,0.00035616,9]
[327371218,1716027039605,-4223.91,0.00035616,9]
[327371220,1716027039614,-1065.59,0.00035616,9]
[327371222,1716027039623,-631.5,0.00035616,9]
[327371224,1716027039632,-545.68,0.00035616,9]
[327371226,1716027039642,-500.0,0.00035616,9]
[327371228,1716027039651,-500.0,0.00035616,9]
[327371230,1716027039660,-500.0,0.00035616,9]
[327371232,1716027039670,-500.0,0.00035616,9]
[327371234,1716027039682,-500.0,0.00035616,9]
[327371236,1716027039692,-610.38,0.00035616,9]
[327371238,1716027039702,-525.03090964,0.00035616,9]
[327371240,1716027039712,-500.0,0.00035616,9]
[327371243,1716027039722,-3746.55,0.00035616,9]
[327371244,1716027039731,-500.0,0.00035616,9]
[327371246,1716027039741,-838.53,0.00035616,9]
[327371248,1716027039750,-500.0,0.00035616,9]
[327371250,1716027039760,-500.0,0.00035616,9]
[327371251,1716027039769,-500.0,0.00035616,9]
[327371253,1716027039779,-584.1,0.00035616,9]
[327371255,1716027039788,-500.0,0.00035616,9]
[327371257,1716027039797,-627.65257385,0.00035616,9]
[327371259,1716027039807,-500.0,0.00035616,9]
[327371260,1716027039816,-500.0,0.00035616,9]
[327371262,1716027039825,-732.68,0.00035616,9]
[327371264,1716027039835,-4471.01,0.00035616,9]
[327371266,1716027039845,-1692.03,0.00035616,9]
[327371268,1716027039855,-500.0,0.00035616,9]
[327371270,1716027039864,-1112.92,0.00035616,9]
[327371272,1716027039873,-500.0,0.00035616,9]
[327371273,1716027039882,-1000.0,0.00035616,9]
[327371275,1716027039892,-500.0,0.00035616,9]
[327371277,1716027039901,-500.0,0.00035616,9]
[327371279,1716027039910,-500.0,0.00035616,9]
[327371280,1716027039920,-500.0,0.00035616,9]
[327371282,1716027039931,-500.0,0.00035616,9]
[327371284,1716027039939,-542.74,0.00035616,9]
[327371286,1716027039948,-500.0,0.00035616,9]
[327371288,1716027039958,-1005.36,0.00035622,2]
[327371289,1716027039967,-1800.0,0.000357,13]
[327371291,1716027039977,-2831.58512474,0.0003579,8]
[327371293,1716027039987,-579.52489556,0.0003579,10]
[327371295,1716027039996,-2800.0,0.000358,13]
[327371296,1716027040006,-1152.06,0.00035889,9]
[327371298,1716027040015,-510.92,0.0003589,16]
[327371300,1716027040025,-500.0,0.0003589,9]
[327371302,1716027040035,-500.0,0.0003589,9]
[327371304,1716027040044,-500.0,0.0003589,9]
[327371306,1716027040053,-508.08363791,0.0003589,9]
[327371307,1716027040062,-512.35593899,0.0003589,9]
[327371309,1716027040071,-500.0,0.0003589,9]
[327371311,1716027040083,-3858.95,0.0003589,9]
[327371313,1716027040093,-500.0,0.0003589,9]
[327371315,1716027040103,-5237.91,0.0003589,9]
[327371316,1716027040112,-500.0,0.0003589,9]
[327371318,1716027040121,-500.0,0.0003589,9]
[327371320,1716027040131,-500.0,0.0003589,9]
[327371322,1716027040139,-500.0,0.0003589,9]
[327371324,1716027040148,-500.0,0.0003589,9]
[327371326,1716027040158,-500.0,0.0003589,9]
[327371328,1716027040169,-541.0,0.0003589,9]
[327371330,1716027040180,-525.08,0.0003589,9]
[327371332,1716027040189,-701.67,0.0003589,9]
[327371333,1716027040198,-500.0,0.0003589,9]
[327371335,1716027040207,-500.0,0.0003589,9]
[327371337,1716027040216,-500.0,0.0003589,9]
[327371339,1716027040225,-500.0,0.0003589,9]
[327371341,1716027040234,-500.0,0.0003589,9]
[327371342,1716027040243,-3615.35,0.0003589,9]
[327371344,1716027040252,-500.0,0.0003589,9]
[327371346,1716027040262,-500.0,0.0003589,9]
[327371348,1716027040271,-500.0,0.0003589,9]
[327371350,1716027040280,-505.7767063,0.0003589,9]
[327371351,1716027040289,-500.0,0.0003589,9]
[327371353,1716027040298,-762.31,0.0003589,9]
[327371355,1716027040307,-543.4,0.0003589,7]
[327371357,1716027040316,-500.0,0.0003589,9]
[327371358,1716027040325,-500.0,0.0003589,9]
[327371360,1716027040334,-500.0,0.0003589,9]
[327371362,1716027040343,-500.0,0.0003589,9]
[327371364,1716027040352,-500.0,0.0003589,9]
[327371366,1716027040362,-500.0,0.0003589,9]
[327371368,1716027040372,-724.11,0.0003589,9]
[327371370,1716027040381,-500.0,0.0003589,9]
[327371372,1716027040390,-808.58,0.0003589,9]
[327371374,1716027040400,-500.0,0.0003589,9]
[327371375,1716027040409,-500.0,0.0003589,9]
[327371377,1716027040419,-500.0,0.0003589,9]
[327371379,1716027040430,-500.0,0.0003589,9]
[327371381,1716027040440,-500.0,0.0003589,9]
[327371383,1716027040449,-500.0,0.0003589,9]
[327371385,1716027040459,-500.0,0.0003589,9]
[327371387,1716027040468,-500.0,0.0003589,9]
[327371389,1716027040478,-500.0,0.0003589,9]
[327371391,1716027040488,-500.0,0.0003589,9]
[327371392,1716027040497,-500.0,0.0003589,9]
[327371394,1716027040507,-641.23,0.0003589,9]
[327371396,1716027040516,-500.0,0.0003589,9]
[327371398,1716027040525,-500.0,0.0003589,9]
[327371399,1716027040535,-631.73,0.0003589,9]
[327371400,1716027040544,-500.0,0.0003589,9]
[327371401,1716027040553,-579.25,0.0003589,9]
[327371402,1716027040563,-500.0,0.0003589,9]
[327371403,1716027040573,-500.0,0.0003589,9]
[327371404,1716027040582,-500.0,0.0003589,9]
[327371405,1716027040592,-500.0,0.0003589,9]
[327371406,1716027040601,-500.0,0.0003589,9]
[327371407,1716027040611,-565.14,0.0003589,9]
[327371408,1716027040620,-500.0,0.0003589,9]
[327371409,1716027040630,-500.0,0.0003589,9]
[327371410,1716027040639,-500.0,0.0003589,9]
[327371411,1716027040648,-715.53,0.0003589,9]
[327371412,1716027040657,-500.0,0.0003589,9]
[327371413,1716027040666,-500.0,0.0003589,9]
[327371414,1716027040676,-500.0,0.0003589,9]
[327371415,1716027040685,-500.0,0.0003589,9]
[327371416,1716027040694,-500.0,0.0003589,9]
[327371417,1716027040703,-414.03795562,0.0003589,9]
[327371418,1716027040713,-500.0,0.0003589,9]
[327371419,1716027040722,-500.0,0.0003589,9]
[327371420,1716027040731,-500.0,0.0003589,9]
[327371422,1716027040740,-522.99,0.0003589,9]
[327371423,1716027040749,-519.82891044,0.0003589,9]
[327371425,1716027040758,-500.0,0.0003589,9]
[327371427,1716027040767,-500.0,0.0003589,9]
[327371429,1716027040776,-500.0,0.0003589,9]
[327371431,1716027040785,-500.0,0.0003589,9]
[327371433,1716027040795,-500.0,0.0003589,9]
[327371435,1716027040805,-500.0,0.0003589,9]
[327371437,1716027040814,-500.0,0.0003589,9]
[327371439,1716027040824,-512.95715484,0.0003589,9]
[327371440,1716027040833,-672.6,0.0003589,9]
[327371441,1716027040842,-500.0,0.0003589,9]
[327371442,1716027040851,-500.0,0.0003589,9]
[327371443,1716027040861,-500.0,0.0003589,9]
[327371444,1716027040870,-500.0,0.0003589,9]
[327371445,1716027040880,-500.0,0.0003589,9]
[327371446,1716027040889,-500.0,0.0003589,9]
[327371447,1716027040899,-500.0,0.0003589,9]
[327371448,1716027040907,-500.0,0.0003589,9]
[327371449,1716027040917,-739.25,0.0003589,9]
[327371450,1716027040927,-500.0,0.0003589,9]
[327371451,1716027040936,-500.0,0.0003589,9]
[327371452,1716027040946,-500.0,0.0003589,9]
[327371453,1716027040956,-500.0,0.0003589,9]
[327371454,1716027040965,-500.0,0.0003589,9]
[327371455,1716027040974,-500.0,0.0003589,9]
[327371456,1716027040984,-804.77,0.0003589,9]
[327371457,1716027040993,-500.0,0.0003589,9]
[327371458,1716027041002,-150.0,0.0003589,9]
[327371459,1716027041011,-987.86,0.0003589,9]
[327371460,1716027041021,-500.0,0.0003589,9]
[327371461,1716027041030,-278.3408199,0.0003589,9]
[327371462,1716027041040,-728.7,0.0003589,9]
[327371463,1716027041049,-500.0,0.0003589,9]
[327371464,1716027041058,-2308.42,0.0003589,9]
[327371465,1716027041067,-500.0,0.0003589,9]
[327371466,1716027041077,-500.0,0.0003589,9]
[327371467,1716027041090,-581.62,0.0003589,9]
[327371468,1716027041099,-500.0,0.0003589,9]
[327371469,1716027041108,-519.39266412,0.0003589,9]
[327371470,1716027041118,-500.0,0.0003589,9]
[327371471,1716027041127,-500.0,0.0003589,9]
[327371472,1716027041138,-500.0,0.0003589,9]
[327371473,1716027041147,-500.0,0.0003589,9]
[327371474,1716027041157,-500.0,0.0003589,9]
[327371475,1716027041169,-500.0,0.0003589,9]
[327371476,1716027041180,-4169.76,0.0003589,9]
[327371478,1716027041190,-500.0,0.0003589,9]
[327371479,1716027041200,-2844.7,0.0003589,9]
[327371480,1716027041209,-500.0,0.0003589,9]
[327371481,1716027041219,-500.0,0.0003589,9]
[327371482,1716027041228,-500.0,0.0003589,9]
[327371483,1716027041238,-500.0,0.0003589,9]
[327371484,1716027041247,-500.0,0.0003589,9]
[327371485,1716027041257,-500.0,0.0003589,9]
[327371486,1716027041266,-502.7741449,0.0003589,9]
[327371487,1716027041276,-500.0,0.0003589,9]
[327371488,1716027041285,-500.0,0.0003589,9]
[327371489,1716027041295,-500.0,0.0003589,9]
[327371490,1716027041304,-500.0,0.0003589,9]
[327371491,1716027041314,-1269.4,0.0003589,9]
[327371492,1716027041323,-500.0,0.0003589,9]
[327371493,1716027041332,-500.0,0.0003589,9]
[327371494,1716027041343,-500.0,0.0003589,9]
[327371495,1716027041352,-508.14972946,0.0003589,2]
[327371496,1716027041362,-500.0,0.0003589,9]
[327371497,1716027041371,-500.0,0.0003589,9]
[327371498,1716027041381,-500.0,0.0003589,9]
[327371499,1716027041390,-500.0,0.0003589,9]
[327371500,1716027041400,-500.0,0.0003589,9]
[327371501,1716027041409,-3069.88,0.0003589,9]
[327371502,1716027041419,-500.0,0.0003589,9]
[327371503,1716027041429,-500.0,0.0003589,9]
[327371504,1716027041439,-535.06,0.0003589,9]
[327371505,1716027041448,-500.0,0.0003589,9]
[327371506,1716027041457,-540.41,0.0003589,9]
[327371507,1716027041467,-500.0,0.0003589,9]
[327371508,1716027041476,-4030.13,0.0003589,9]
[327371509,1716027041486,-500.0,0.0003589,9]
[327371510,1716027041495,-500.0,0.0003589,9]
[327371511,1716027041505,-646.59,0.0003589,9]
[327371512,1716027041514,-500.0,0.0003589,9]
[327371513,1716027041523,-500.0,0.0003589,9]
[327371514,1716027041532,-500.0,0.0003589,9]
[327371515,1716027041542,-500.0,0.0003589,9]
[327371516,1716027041551,-682.05,0.0003589,9]
[327371517,1716027041561,-500.0,0.0003589,9]
[327371518,1716027041571,-500.0,0.0003589,9]
[327371519,1716027041580,-500.0,0.0003589,9]
[327371520,1716027041590,-500.0,0.0003589,9]
[327371521,1716027041599,-500.0,0.0003589,9]
[327371522,1716027041609,-500.0,0.0003589,9]
[327371523,1716027041619,-500.0,0.0003589,9]
[327371524,1716027041629,-500.0,0.0003589,9]
[327371525,1716027041638,-3657.87,0.0003589,9]
[327371526,1716027041648,-500.0,0.0003589,9]
[327371527,1716027041657,-500.0,0.0003589,9]
[327371528,1716027041667,-500.0,0.0003589,9]
[327371529,1716027041677,-500.0,0.0003589,9]
[327371530,1716027041686,-500.0,0.0003589,9]
[327371531,1716027041695,-4403.65,0.0003589,9]
[327371532,1716027041705,-500.0,0.0003589,9]
[327371533,1716027041715,-500.0,0.0003589,9]
[327371534,1716027041725,-3279.76,0.0003589,9]
[327371535,1716027041735,-500.0,0.0003589,9]
[327371536,1716027041744,-500.0,0.0003589,9]
[327371537,1716027041754,-500.0,0.0003589,9]
[327371538,1716027041763,-500.0,0.0003589,9]
[327371539,1716027041773,-500.0,0.0003589,9]
[327371540,1716027041783,-500.0,0.0003589,9]
[327371541,1716027041792,-500.0,0.0003589,9]
[327371542,1716027041802,-500.0,0.0003589,9]
[327371543,1716027041811,-500.0,0.0003589,9]
[327371544,1716027041822,-500.0,0.0003589,9]
[327371545,1716027041831,-3229.76,0.0003589,9]
[327371546,1716027041840,-500.0,0.0003589,9]
[327371547,1716027041850,-513.07418858,0.0003589,9]
[327371548,1716027041860,-500.0,0.0003589,9]
[327371549,1716027041869,-500.0,0.0003589,9]
[327371550,1716027041879,-500.0,0.0003589,9]
[327371551,1716027041888,-500.0,0.0003589,9]
[327371552,1716027041898,-500.0,0.0003589,9]
[327371553,1716027041907,-500.0,0.0003589,9]
[327371554,1716027041916,-500.0,0.0003589,9]
[327371555,1716027041926,-500.0,0.0003589,9]
[327371556,1716027041936,-574.36,0.0003589,9]
[327371557,1716027041945,-500.0,0.0003589,9]
[327371558,1716027041955,-500.0,0.0003589,9]
[327371559,1716027041964,-500.0,0.0003589,9]
[327371560,1716027041974,-500.0,0.0003589,9]
[327371561,1716027041984,-500.0,0.0003589,9]
[327371562,1716027041994,-500.0,0.0003589,9]
[327371563,1716027042003,-500.0,0.0003589,9]
[327371564,1716027042012,-500.0,0.0003589,9]
[327371565,1716027042022,-500.0,0.0003589,9]
[327371566,1716027042031,-500.0,0.0003589,9]
[327371567,1716027042040,-500.0,0.0003589,9]
[327371568,1716027042049,-500.0,0.0003589,9]
[327371569,1716027042059,-547.24,0.0003589,9]
[327371570,1716027042068,-500.0,0.0003589,9]
[327371571,1716027042077,-500.0,0.0003589,9]
[327371572,1716027042092,-500.0,0.0003589,9]
[327371573,1716027042102,-500.0,0.0003589,9]
[327371574,1716027042111,-500.0,0.0003589,9]
[327371575,1716027042120,-500.0,0.0003589,9]
[327371576,1716027042131,-500.0,0.0003589,9]
[327371577,1716027042140,-500.0,0.0003589,9]
[327371578,1716027042150,-778.58,0.0003589,9]
[327371579,1716027042161,-500.0,0.0003589,9]
[327371580,1716027042171,-333.10236361,0.0003589,9]
[327371581,1716027042182,-541.06,0.0003589,9]
[327371582,1716027042191,-500.0,0.0003589,9]
[327371583,1716027042201,-500.0,0.0003589,9]
[327371584,1716027042211,-500.0,0.0003589,9]
[327371585,1716027042220,-785.52,0.0003589,9]
[327371586,1716027042230,-511.35087554,0.0003589,9]
[327371587,1716027042239,-500.0,0.0003589,9]
[327371588,1716027042249,-500.0,0.0003589,9]
[327371589,1716027042258,-509.84963037,0.0003589,9]
[327371590,1716027042268,-867.73,0.0003589,9]
[327371591,1716027042278,-500.0,0.0003589,9]
[327371592,1716027042288,-500.0,0.0003589,9]
[327371593,1716027042297,-500.0,0.0003589,9]
[327371594,1716027042307,-500.0,0.0003589,9]
[327371595,1716027042317,-500.0,0.0003589,9]
[327371596,1716027042326,-500.0,0.0003589,9]
[327371597,1716027042335,-500.0,0.0003589,9]
[327371598,1716027042345,-500.0,0.0003589,9]
[327371599,1716027042354,-500.0,0.0003589,9]
[327371600,1716027042363,-530.3203039,0.0003589,9]
[327371601,1716027042373,-500.0,0.0003589,9]
[327371603,1716027042383,-500.0,0.0003589,9]
[327371604,1716027042392,-500.0,0.0003589,9]
[327371605,1716027042402,-500.0,0.0003589,9]
[327371606,1716027042411,-500.0,0.0003589,9]
[327371607,1716027042421,-523.96776063,0.0003589,9]
[327371608,1716027042432,-500.0,0.0003589,9]
[327371609,1716027042441,-500.0,0.0003589,9]
[327371610,1716027042451,-198.07,0.0003589,9]
[327371612,1716027042461,-500.0,0.0003589,9]
[327371613,1716027042471,-500.0,0.0003589,9]
[327371614,1716027042481,-500.0,0.0003589,9]
[327371615,1716027042490,-500.0,0.0003589,9]
[327371616,1716027042500,-500.0,0.0003589,9]
[327371617,1716027042509,-500.0,0.0003589,9]
[327371618,1716027042519,-500.0,0.0003589,9]
[327371619,1716027042528,-500.0,0.0003589,9]
[327371620,1716027042538,-500.0,0.0003589,9]
[327371622,1716027042547,-849.85,0.0003589,9]
[327371624,1716027042556,-500.0,0.0003589,9]
[327371625,1716027042565,-500.0,0.0003589,9]
[327371626,1716027042575,-500.0,0.0003589,9]
[327371627,1716027042584,-500.0,0.0003589,9]
[327371628,1716027042594,-3765.94,0.0003589,9]
[327371629,1716027042604,-500.0,0.0003589,9]
[327371630,1716027042613,-500.0,0.0003589,9]
[327371631,1716027042623,-500.0,0.0003589,9]
[327371632,1716027042632,-733.66,0.0003589,9]
[327371633,1716027042642,-500.0,0.0003589,9]
[327371634,1716027042651,-500.0,0.0003589,9]
[327371635,1716027042661,-509.71070904,0.0003589,9]
[327371636,1716027042670,-500.0,0.0003589,9]
[327371637,1716027042682,-500.0,0.0003589,9]
[327371638,1716027042692,-3754.91,0.0003589,9]
[327371640,1716027042702,-551.68711076,0.0003589,9]
[327371642,1716027042711,-500.0,0.0003589,9]
[327371644,1716027042721,-529.15782886,0.0003589,9]
[327371645,1716027042731,-500.0,0.0003589,9]
[327371646,1716027042740,-500.0,0.0003589,9]
[327371647,1716027042750,-508.71038026,0.0003589,9]
[327371648,1716027042759,-1157.16,0.0003589,9]
[327371649,1716027042769,-500.0,0.0003589,9]
[327371650,1716027042778,-500.0,0.0003589,9]
[327371651,1716027042788,-5415.09,0.0003589,9]
[327371652,1716027042797,-500.0,0.0003589,9]
[327371653,1716027042807,-500.0,0.0003589,9]
[327371654,1716027042816,-500.0,0.0003589,9]
[327371655,1716027042826,-500.0,0.0003589,9]
[327371656,1716027042836,-500.0,0.0003589,9]
[327371657,1716027042845,-259.9135604,0.0003589,9]
[327371677,1716027044636,-3163.0855683,0.00035613,2]
[327371678,1716027044647,-612.12,0.00035616,9]
[327371679,1716027044656,-499.46439991,0.00035616,2]
[327371680,1716027044666,-240.0864396,0.0003589,9]
[327371681,1716027044675,-2210.44359219,0.0003589,9]
[327371682,1716027044687,-7067.73640781,0.0003589,9]
[327371683,1716027044695,-35.7943642,0.0003589,9]
[327371684,1716027044706,-464.2056358,0.0003589,9]
[327371685,1716027044716,-510.18517262,0.0003589,9]
[327371686,1716027044725,-316.38670459,0.0003589,9]
[327371687,1716027044735,-500.0,0.0003589,9]
[327371688,1716027044744,-3867.98,0.0003589,9]
[327371689,1716027044753,-500.0,0.0003589,9]
[327371690,1716027044762,-617.21104992,0.0003589,9]
[327371691,1716027044774,-95.35895008,0.0003589,9]
[327371692,1716027044783,-500.0,0.0003589,9]
[327371693,1716027044793,-500.0,0.0003589,9]
[327371694,1716027044802,-500.0,0.0003589,9]
[327371695,1716027044811,-500.0,0.0003589,9]
[327371696,1716027044820,-500.0,0.0003589,9]
[327371697,1716027044830,-2297.65,0.0003589,9]
[327371698,1716027044839,-500.0,0.0003589,9]
[327371699,1716027044848,-500.0,0.0003589,9]
[327371700,1716027044858,-500.0,0.0003589,9]
[327371701,1716027044867,-500.0,0.0003589,9]
[327371702,1716027044876,-515.43237866,0.0003589,9]
[327371703,1716027044885,-500.0,0.0003589,9]
[327371704,1716027044895,-500.0,0.0003589,9]
[327371705,1716027044903,-2338.72,0.0003589,9]
[327371706,1716027044912,-500.0,0.0003589,9]
[327371707,1716027044922,-500.0,0.0003589,9]
[327371708,1716027044933,-2487.83754505,0.0003589,9]
[327371709,1716027044961,-1614.2,0.0003589,9]
[327371710,1716027044972,-157.82245495,0.0003589,9]
[327371711,1716027044981,-663.17477532,0.0003589,9]
[327371712,1716027045172,-1088.57522468,0.0003589,9]
[327371713,1716027045183,-500.0,0.0003589,9]
[327371714,1716027045193,-500.0,0.0003589,9]
[327371715,1716027045202,-500.0,0.0003589,9]
[327371716,1716027045212,-500.0,0.0003589,9]
[327371717,1716027045221,-8421.29,0.0003589,9]
[327371718,1716027045230,-544.14219,0.0003589,9]
[327371719,1716027045239,-500.0,0.0003589,9]
[327371720,1716027045249,-500.0,0.0003589,9]
[327371721,1716027045259,-500.0,0.0003589,7]
[327371722,1716027045269,-500.0,0.0003589,9]
[327371723,1716027045278,-500.0,0.0003589,9]
[327371724,1716027045287,-710.58,0.0003589,9]
[327371725,1716027045296,-1277.84,0.0003589,9]
[327371726,1716027045306,-500.0,0.0003589,9]
[327371727,1716027045316,-500.0,0.0003589,9]
[327371728,1716027045325,-500.0,0.0003589,9]
[327371730,1716027045334,-500.0,0.0003589,9]
[327371731,1716027045344,-542.72402643,0.0003589,9]
[327371732,1716027045353,-500.0,0.0003589,9]
[327371733,1716027045362,-619.73,0.0003589,9]
[327371734,1716027045372,-500.22,0.0003589,9]
[327371735,1716027045382,-500.0,0.0003589,9]
[327371736,1716027045392,-793.67,0.0003589,9]